bitfinex-derivatives/quotes_SOLF0:USTF0_20250528
["timestamp","ask_amount","ask_price","bid_price","bid_amount"]
[1748437727924,0.04185318,174.13,174.12,5.7403]
[1748437731837,1.9267,174.2,174.14,5.7393]
[1748437732033,1.9267,174.2,174.14,29.06]
[1748437732841,0.03725518,174.19,174.15,0.03957929]
[1748437733040,5.7384,174.18,174.15,5.77867929]
[1748437733537,0.03725518,174.19,174.15,5.77867929]
[1748437733538,0.03725518,174.19,174.15,10.39996952]
[1748437734240,0.03725518,174.19,174.17,5.7384]
[1748437734635,0.03725518,174.19,174.15,10.39996952]
[1748437734833,0.03725518,174.19,174.15,16.13906952]
[1748437735029,0.03725518,174.19,174.15,10.39996952]
[1748437735237,0.03725518,174.19,174.17,5.7386]
[1748437735539,0.03725518,174.19,174.15,10.39996952]
[1748437735934,5.77525518,174.19,174.15,16.13896952]
[1748437736334,5.7387,174.17,174.15,0.03957929]
[1748437737043,5.7384,174.18,174.15,0.03957929]
[1748437737540,0.03725518,174.19,174.15,0.03957929]
[1748437737741,5.7386,174.18,174.15,5.77887929]
[1748437739047,0.03725518,174.19,174.15,0.03957929]
[1748437739747,5.7388,174.17,174.15,0.03957929]
[1748437740647,5.739,174.16,174.15,0.03957929]
[1748437740847,0.03725518,174.19,174.15,0.03957929]
[1748437741346,5.7389,174.17,174.15,0.03957929]
[1748437741543,5.7389,174.17,174.15,5.77877929]
[1748437741746,5.7384,174.18,174.15,0.03957929]
[1748437741957,0.03725518,174.19,174.15,0.03957929]
[1748437742156,5.77545518,174.19,174.16,5.7388]
[1748437742752,5.77545518,174.19,174.15,0.03957929]
[1748437742953,5.77545518,174.19,174.16,5.7389]
[1748437743359,5.77545518,174.19,174.15,0.03957929]
[1748437743565,0.03725518,174.19,174.15,0.03957929]
[1748437744057,0.03725518,174.19,174.18,5.7383]
[1748437744461,0.03725518,174.19,174.18,34.7783]
[1748437745960,0.03725518,174.19,174.18,29.04]
[1748437746453,5.77525518,174.19,174.18,29.04]
[1748437746662,0.03725518,174.19,174.15,29.07957929]
[1748437746962,5.7385,174.18,174.15,34.81887929]
[1748437747156,0.03725518,174.19,174.15,29.07957929]
[1748437747558,5.7386,174.18,174.15,34.81887929]
[1748437747758,0.03725518,174.19,174.15,29.07957929]
[1748437748161,5.7384,174.18,174.15,29.07957929]
[1748437748760,5.7387,174.17,174.15,34.81887929]
[1748437749263,5.7387,174.17,174.15,29.07957929]
[1748437749861,5.7387,174.17,174.15,34.81877929]
[1748437751060,5.739,174.16,174.15,0.03957929]
[1748437754867,5.7388,174.17,174.15,0.03957929]
[1748437755066,0.03725518,174.19,174.15,0.03957929]
[1748437755466,0.03725518,174.19,174.18,5.7383]
[1748437759171,0.03725518,174.19,174.17,5.7385]
[1748437762174,0.03725518,174.19,174.18,5.7383]
[1748437762975,0.03725518,174.19,174.17,5.7385]
[1748437763464,5.7368,174.23,174.17,10.36039023]
[1748437763663,5.7368,174.23,174.2,5.7375]
[1748437763876,5.7368,174.23,174.2,34.7975]
[1748437764570,5.7774031,174.23,174.2,34.84155944]
[1748437765373,5.737,174.22,174.2,34.84155944]
[1748437765767,0.0406031,174.23,174.2,29.10405944]
[1748437766567,5.7373,174.21,174.2,29.10405944]
[1748437767071,0.0406031,174.23,174.2,29.10405944]
[1748437767264,5.7371,174.22,174.2,29.10405944]
[1748437767470,0.0406031,174.23,174.2,29.10405944]
[1748437768674,5.7776031,174.23,174.2,34.84155944]
[1748437769276,5.737,174.22,174.2,34.84155944]
[1748437769476,0.0406031,174.23,174.2,29.10405944]
[1748437770477,5.7373,174.22,174.2,29.10405944]
[1748437772069,5.7373,174.21,174.2,29.10405944]
[1748437772269,0.0406031,174.23,174.2,29.10405944]
[1748437773981,5.7775031,174.23,174.2,34.84165944]
[1748437774972,5.7371,174.22,174.2,34.84165944]
[1748437778580,5.7371,174.22,174.2,29.10405944]
[1748437778883,5.7373,174.21,174.2,29.10405944]
[1748437779583,5.7373,174.21,174.2,0.04405944]
[1748437783181,5.7389,174.17,174.14,34.7995]
[1748437783678,1.945,174.22,174.14,34.7995]
[1748437783883,5.7392,174.16,174.14,34.7995]
[1748437784784,5.77766334,174.17,174.14,29.06]
[1748437785382,0.03886334,174.17,174.14,29.06]
[1748437786185,0.03886334,174.17,174.16,5.739]
[1748437787690,0.03886334,174.17,174.15,5.7393]
[1748437787988,0.03886334,174.17,174.14,29.06]
[1748437788388,5.7391,174.16,174.14,29.06]
[1748437788589,5.7391,174.16,174.13,7.79876143]
[1748437788790,5.7391,174.16,174.13,34.70306143]
[1748437789184,0.03886334,174.17,174.13,28.96326143]
[1748437790689,0.03886334,174.17,174.16,5.739]
[1748437794287,0.03886334,174.17,174.15,5.7393]
[1748437794590,0.03886334,174.17,174.13,28.96326143]
[1748437794887,0.03886334,174.17,174.13,34.70296143]
[1748437794888,5.7392,174.16,174.13,34.70296143]
[1748437795282,0.03886334,174.17,174.13,28.96326143]
[1748437795488,5.7396,174.14,174.13,28.96326143]
[1748437796088,0.03886334,174.17,174.13,28.96326143]
[1748437796292,0.03886334,174.17,174.13,0.04326143]
[1748437796493,5.7392,174.16,174.13,5.78316143]
[1748437796888,0.03886334,174.17,174.13,5.78316143]
[1748437797992,5.7394,174.15,174.13,5.78316143]
[1748437798194,5.7394,174.15,174.13,0.04326143]
[1748437799791,0.03886334,174.17,174.13,5.78306143]
[1748437799996,0.03886334,174.17,174.13,0.04326143]
[1748437800990,5.7392,174.16,174.13,5.78296143]
[1748437802101,0.03886334,174.17,174.13,0.04326143]
[1748437802600,5.77766334,174.17,174.14,5.7396]
[1748437802801,0.03886334,174.17,174.13,0.04326143]
[1748437803596,5.7396,174.14,174.13,0.04326143]
[1748437803795,28.92,174.16,174.07,28.92]
[1748437803998,30.9856,174.16,174.07,28.92]
[1748437804194,10.36039023,174.14,174.04,28.92]
[1748437804891,0.03989709,174.11,174.07,0.03716653]
[1748437805901,5.7415,174.09,174.07,0.03716653]
[1748437806304,0.03989709,174.11,174.07,0.03716653]
[1748437806498,5.7416,174.08,174.07,0.03716653]
[1748437807503,5.7413,174.09,174.07,0.03716653]
[1748437807706,0.03989709,174.11,174.07,0.03716653]
[1748437807905,0.03989709,174.11,174.07,5.77906653]
[1748437808208,5.7412,174.1,174.07,5.77906653]
[1748437808405,0.03989709,174.11,174.09,5.7413]
[1748437808708,5.78069709,174.11,174.07,0.03716653]
[1748437808900,5.78069709,174.11,174.08,5.7414]
[1748437809100,0.03989709,174.11,174.07,0.03716653]
[1748437812412,5.7416,174.08,174.07,0.03716653]
[1748437813111,28.97989709,174.11,174.07,0.03716653]
[1748437813712,5.7415,174.09,174.07,0.03716653]
[1748437814714,28.97989709,174.11,174.07,0.03716653]
[1748437814910,0.03989709,174.11,174.08,5.7413]
[1748437816110,5.78079709,174.11,174.08,5.7413]
[1748437816315,0.03989709,174.11,174.08,5.7413]
[1748437816516,0.03989709,174.11,174.09,5.7412]
[1748437816721,0.03989709,174.11,174.07,0.03716653]
[1748437817017,0.03989709,174.11,174.1,5.741]
[1748437817711,5.7396,174.15,174.11,5.7404]
[1748437817907,28.86,174.18,174.08,1.9777]
[1748437818119,28.86,174.18,174.08,7.7192]
[1748437818416,28.86,174.18,174.08,1.9777]
[1748437818616,5.7404,174.12,174.11,0.0416494]
[1748437820915,0.04396266,174.15,174.11,0.0416494]
[1748437821412,5.7398,174.14,174.11,0.0416494]
[1748437821610,5.7398,174.14,174.11,5.7820494]
[1748437821809,0.04396266,174.15,174.11,0.0416494]
[1748437822019,5.78356266,174.15,174.11,0.0416494]
[1748437822214,0.04396266,174.15,174.12,5.7402]
[1748437822412,0.04396266,174.15,174.11,0.0416494]
[1748437822710,5.78356266,174.15,174.12,5.7401]
[1748437822915,0.04396266,174.15,174.11,0.0416494]
[1748437823115,0.04396266,174.15,174.11,1.9468494]
[1748437824318,0.04396266,174.15,174.14,5.7396]
[1748437824511,0.04396266,174.15,174.14,34.5996]
[1748437826617,28.86,174.24,174.14,34.5996]
[1748437827424,28.86,174.24,174.14,28.86]
[1748437827620,28.86,174.24,174.17,0.03627956]
[1748437827621,0.03838731,174.21,174.17,0.03627956]
[1748437827821,5.7383,174.18,174.17,0.03627956]
[1748437828124,5.7383,174.18,174.17,7.956e-05]
[1748437831228,5.7381,174.19,174.17,7.956e-05]
[1748437831523,0.03838731,174.21,174.17,7.956e-05]
[1748437832728,28.86,174.29,174.17,7.956e-05]
[1748437833027,28.86,174.29,174.16,124.11539023]
[1748437833424,28.86,174.29,174.19,5.7378]
[1748437833625,28.86,174.29,174.2,28.86]
[1748437833929,5.7364,174.24,174.23,0.03987895]
[1748437834325,0.0389632,174.26,174.23,0.03987895]
[1748437835630,5.7364,174.24,174.23,0.03987895]
[1748437837416,0.0389632,174.26,174.18,28.86]
[1748437837615,5.738,174.19,174.18,28.86]
[1748437837822,5.738,174.19,174.16,1.935]
[1748437837823,39.22039023,174.25,174.16,1.935]
[1748437838222,5.7387,174.17,174.16,1.935]
[1748437838615,5.77997519,174.18,174.16,1.935]
[1748437838816,5.7385,174.18,174.16,1.935]
[1748437839128,0.04070722,174.19,174.16,1.935]
[1748437840328,5.7385,174.18,174.16,1.935]
[1748437841126,5.7387,174.17,174.16,1.935]
[1748437841324,0.04070722,174.19,174.16,1.935]
[1748437841624,5.739,174.16,174.15,28.90323721]
[1748437842419,5.7384,174.18,174.15,28.90323721]
[1748437842625,0.04070722,174.19,174.15,28.90323721]
[1748437843026,5.7384,174.18,174.15,28.90323721]
[1748437843533,0.04070722,174.19,174.15,28.90323721]
[1748437843927,5.7384,174.18,174.15,34.64243721]
[1748437844634,0.04070722,174.19,174.15,34.64243721]
[1748437844828,0.04070722,174.19,174.15,28.90323721]
[1748437845028,5.7384,174.18,174.15,28.90323721]
[1748437845228,0.04070722,174.19,174.15,28.90323721]
[1748437845430,0.04070722,174.19,174.16,5.7387]
[1748437845933,5.77880722,174.19,174.16,5.7387]
[1748437846136,0.04070722,174.19,174.15,28.90323721]
[1748437846735,0.04070722,174.19,174.18,5.7383]
[1748437847233,10.36039023,174.27,174.16,2.0235]
[1748437847538,29.24,174.28,174.16,12.38389023]
[1748437848229,5.7368,174.23,174.2,5.77799125]
[1748437848428,5.7368,174.23,174.2,35.01799125]
[1748437848929,0.04293423,174.24,174.2,29.28059125]
[1748437850731,5.7372,174.22,174.2,29.28059125]
[1748437850934,0.04293423,174.24,174.2,29.28059125]
[1748437851135,5.7373,174.22,174.2,29.28059125]
[1748437851435,0.04293423,174.24,174.2,29.28059125]
[1748437851635,5.737,174.22,174.2,29.28059125]
[1748437852035,0.04293423,174.24,174.2,29.28059125]
[1748437852435,5.7372,174.22,174.2,29.28059125]
[1748437852636,0.04293423,174.24,174.2,29.28059125]
[1748437852834,5.7369,174.23,174.2,29.28059125]
[1748437853231,0.04293423,174.24,174.2,29.28059125]
[1748437853437,5.7367,174.23,174.2,29.28059125]
[1748437853937,5.7367,174.23,174.2,35.01819125]
[1748437854331,5.737,174.22,174.2,29.28059125]
[1748437854538,0.04293423,174.24,174.2,29.28059125]
[1748437854736,5.7373,174.21,174.2,29.28059125]
[1748437854939,5.7373,174.21,174.2,0.04059125]
[1748437856632,39.64332446,174.24,174.14,29.24]
[1748437856839,3.9656,174.23,174.14,29.24]
[1748437857740,0.0414858,174.2,174.17,0.04147693]
[1748437858139,5.7383,174.18,174.17,0.04147693]
[1748437859037,29.2814858,174.2,174.1,34.9809]
[1748437859237,29.24,174.2,174.1,34.9809]
[1748437859436,29.24,174.2,174.1,29.24]
[1748437859639,5.7403,174.12,174.1,29.24]
[1748437860243,5.78271373,174.13,174.1,29.24]
[1748437860437,5.78271373,174.13,174.1,34.981]
[1748437860838,5.7403,174.12,174.1,29.24]
[1748437862540,0.04261373,174.13,174.09,0.04348421]
[1748437863039,5.7404,174.12,174.09,0.04348421]
[1748437863243,0.04261373,174.13,174.09,0.04348421]
[1748437863434,0.04261373,174.13,174.09,10.40387444]
[1748437863633,0.04261373,174.13,174.1,1.8888]
[1748437863839,0.04261373,174.13,174.12,5.7403]
[1748437866443,0.04261373,174.13,174.11,34.9805]
[1748437867543,0.04261373,174.13,174.12,5.7403]
[1748437869141,0.04261373,174.13,174.11,29.24]
[1748437869142,5.78281373,174.13,174.11,29.24]
[1748437869536,0.04261373,174.13,174.11,29.24]
[1748437870141,0.04261373,174.13,174.12,5.7403]
[1748437871843,0.04261373,174.13,174.11,34.9805]
[1748437872050,0.04261373,174.13,174.11,29.24]
[1748437873954,0.04261373,174.13,174.12,5.7403]
[1748437875756,0.04261373,174.13,174.09,0.04348421]
[1748437876258,5.741,174.1,174.09,0.04348421]
[1748437876646,0.04261373,174.13,174.09,0.04348421]
[1748437876857,5.7409,174.11,174.09,0.04348421]
[1748437877056,0.04261373,174.13,174.09,0.04348421]
[1748437877559,5.7406,174.12,174.09,0.04348421]
[1748437877759,0.04261373,174.13,174.09,0.04348421]
[1748437878658,0.04261373,174.13,174.11,5.7404]
[1748437879262,0.04261373,174.13,174.12,5.7403]
[1748437880860,29.12,174.21,174.14,5.7395]
[1748437881461,5.7388,174.17,174.14,5.7395]
[1748437881859,5.78119785,174.17,174.14,5.77820226]
[1748437882459,5.739,174.16,174.14,0.03870226]
[1748437882760,0.04239785,174.17,174.14,0.03870226]
[1748437883155,5.739,174.16,174.14,0.03870226]
[1748437883762,5.7393,174.15,174.14,0.03870226]
[1748437887869,0.04239785,174.17,174.14,0.03870226]
[1748437888474,5.7391,174.16,174.14,0.03870226]
[1748437888669,0.04239785,174.17,174.14,0.03870226]
[1748437888971,0.04239785,174.17,174.15,5.7392]
[1748437889172,0.04239785,174.17,174.14,0.03870226]
[1748437889779,5.78129785,174.17,174.14,5.77810226]
[1748437890276,5.7392,174.16,174.14,0.03870226]
[1748437890576,0.04239785,174.17,174.14,0.03870226]
[1748437890772,5.7393,174.15,174.14,0.03870226]
[1748437898684,5.7407,174.11,174.07,31.1274]
[1748437898877,39.48039023,174.17,174.07,2.0074]
[1748437899079,39.48039023,174.17,174.08,5.7413]
[1748437899676,5.7406,174.12,174.11,0.03732644]
[1748437907292,0.04110258,174.14,174.11,0.03732644]
[1748437910499,5.78090258,174.14,174.11,5.77792644]
[1748437911790,0.04110258,174.14,174.12,5.7403]
[1748437912296,0.04110258,174.14,174.11,0.03732644]
[1748437912600,5.78090258,174.14,174.11,5.77782644]
[1748437913092,5.74,174.13,174.11,5.77782644]
[1748437914204,5.7403,174.12,174.11,0.03732644]
[1748437925397,0.04110258,174.14,174.11,0.03732644]
[1748437926195,5.78100258,174.14,174.11,0.03732644]
[1748437926903,5.7401,174.13,174.11,0.03732644]
[1748437927606,5.7403,174.12,174.11,0.03732644]
[1748437928813,5.7401,174.13,174.11,0.03732644]
[1748437929003,0.04110258,174.14,174.11,0.03732644]
[1748437929301,0.04110258,174.14,174.11,29.07732644]
[1748437929509,0.04110258,174.14,174.12,5.7401]
[1748437929707,0.04110258,174.14,174.11,29.07732644]
[1748437930709,0.04110258,174.14,174.12,5.7401]
[1748437931902,0.04110258,174.14,174.13,5.74]
[1748437933897,32.9628,174.22,174.15,5.7392]
[1748437934911,0.04262122,174.2,174.17,0.03768577]
[1748437935798,5.7385,174.18,174.17,0.03768577]
[1748437938010,0.04262122,174.2,174.17,0.03768577]
[1748437938213,0.04262122,174.2,174.18,5.7383]
[1748437938608,0.04262122,174.2,174.17,0.03768577]
[1748437938812,0.04262122,174.2,174.18,5.7383]
[1748437940407,0.04262122,174.2,174.19,5.738]
[1748437942306,0.04262122,174.2,174.17,0.03768577]
[1748437942714,0.04262122,174.2,174.17,5.77608577]
[1748437943215,0.04262122,174.2,174.17,0.03768577]
[1748437943413,0.04262122,174.2,174.18,5.7381]
[1748437943616,0.04262122,174.2,174.17,0.03768577]
[1748437944616,5.78042122,174.2,174.17,5.77618577]
[1748437945812,0.04262122,174.2,174.18,5.7383]
[1748437948016,5.78062122,174.2,174.17,0.03768577]
[1748437948914,0.04262122,174.2,174.17,0.03768577]
[1748437951019,0.04262122,174.2,174.19,5.738]
[1748437952229,0.04262122,174.2,174.19,34.578]
[1748437954433,11.4649,174.36,174.19,39.20039023]
[1748437954628,524.7,174.33,174.22,10.36039023]
[1748437954926,524.7,174.33,174.23,28.84]
[1748437955132,5.7351,174.28,174.25,5.7358]
[1748437955327,5.7351,174.28,174.23,28.84]
[1748437955527,0.03668906,174.27,174.24,0.04333086]
[1748437956222,5.7357,174.26,174.24,0.04333086]
[1748437956631,5.736,174.25,174.24,0.04333086]
[1748437961942,10.39707929,174.27,174.18,28.82]
[1748437962237,10.36039023,174.27,174.18,28.82]
[1748437962832,10.36039023,174.27,174.21,0.04402676]
[1748437962833,0.03949036,174.24,174.21,0.04402676]
[1748437963040,5.737,174.22,174.21,0.04402676]
[1748437973845,5.738,174.19,174.18,28.82]
[1748437974048,39.60039023,174.25,174.15,29.24]
[1748437974346,1.9476,174.23,174.13,1.9474]
[1748437974551,1.9476,174.23,174.15,5.7392]
[1748437974744,5.7382,174.19,174.15,5.7392]
[1748437974950,5.7382,174.19,174.17,0.03982084]
[1748437976347,5.7377,174.2,174.17,5.77852084]
[1748437977251,5.7377,174.2,174.17,0.03982084]
[1748437978143,5.738,174.19,174.17,0.03982084]
[1748437978546,5.7378,174.2,174.17,0.03982084]
[1748437979854,5.7378,174.2,174.17,5.77842084]
[1748437980849,5.77982638,174.21,174.18,5.7383]
[1748437981351,0.04232638,174.21,174.17,0.03982084]
[1748437981949,0.04232638,174.21,174.19,5.7379]
[1748437982847,5.77972638,174.21,174.19,5.7379]
[1748437983751,5.7378,174.2,174.17,0.03982084]
[1748437984250,5.7378,174.2,174.17,5.77822084]
[1748437984649,0.04232638,174.21,174.17,0.03982084]
[1748437986449,5.7377,174.2,174.17,0.03982084]
[1748437986649,0.04232638,174.21,174.17,0.03982084]
[1748437986853,5.7381,174.19,174.17,0.03982084]
[1748437987053,0.04232638,174.21,174.17,0.03982084]
[1748437988057,5.7382,174.19,174.17,0.03982084]
[1748437988752,0.04232638,174.21,174.17,0.03982084]
[1748437988753,5.7383,174.18,174.17,0.03982084]
[1748437990846,0.04232638,174.21,174.17,0.03982084]
[1748437990847,5.7381,174.19,174.17,0.03982084]
[1748437992458,5.738,174.19,174.17,5.77842084]
[1748437992759,5.738,174.19,174.17,0.03982084]
[1748437993555,5.7378,174.2,174.17,0.03982084]
[1748437993756,0.04232638,174.21,174.17,0.03982084]
[1748437994064,5.7383,174.18,174.17,0.03982084]
[1748437997162,5.7383,174.18,174.17,2.084e-05]
[1748438002755,5.7407,174.11,174.09,1.9602]
[1748438002960,29.08,174.17,174.09,1.9602]
[1748438003360,5.7408,174.11,174.09,1.9602]
[1748438003754,0.0411079,174.12,174.09,1.9602]
[1748438003958,5.7815079,174.12,174.09,1.9602]
[1748438004763,5.7407,174.11,174.09,1.9602]
[1748438005965,5.7815079,174.12,174.09,1.9602]
[1748438006161,5.7815079,174.12,174.09,7.7014]
[1748438006967,0.0411079,174.12,174.09,1.9602]
[1748438008969,0.0411079,174.12,174.11,5.7406]
[1748438009370,29.08,174.2,174.09,1.9602]
[1748438009567,5.7395,174.15,174.12,5.7401]
[1748438010273,5.7395,174.15,174.12,29.1204508]
[1748438010274,0.04290943,174.15,174.12,29.1204508]
[1748438010969,0.04290943,174.15,174.14,5.7397]
[1748438012470,0.04290943,174.15,174.12,29.1204508]
[1748438013067,5.78240943,174.15,174.12,34.8605508]
[1748438014166,5.78240943,174.15,174.13,5.74]
[1748438014970,0.04290943,174.15,174.13,5.74]
[1748438015974,0.04290943,174.15,174.14,5.7397]
[1748438016778,0.04290943,174.15,174.13,5.7399]
[1748438017974,0.04290943,174.15,174.12,29.1204508]
[1748438018975,5.7398,174.14,174.12,29.1204508]
[1748438022479,5.74,174.13,174.12,29.1204508]
[1748438022683,0.04290943,174.15,174.12,29.1204508]
[1748438023984,0.04290943,174.15,174.13,5.7397]
[1748438024276,0.04290943,174.15,174.12,29.1204508]
[1748438025086,0.04290943,174.15,174.14,5.7397]
[1748438026675,5.78230943,174.15,174.12,29.1204508]
[1748438026881,0.04290943,174.15,174.12,29.1204508]
[1748438027576,5.7399,174.14,174.12,29.1204508]
[1748438027776,0.04290943,174.15,174.12,29.1204508]
[1748438028483,0.04290943,174.15,174.12,34.8604508]
[1748438028674,5.78220943,174.15,174.12,34.8604508]
[1748438029079,0.04290943,174.15,174.13,5.74]
[1748438031386,5.78230943,174.15,174.12,34.8606508]
[1748438032491,5.7397,174.14,174.12,29.1204508]
[1748438032789,5.7398,174.14,174.12,29.1204508]
[1748438033385,5.74,174.13,174.12,29.1204508]
[1748438034090,5.7398,174.14,174.12,29.1204508]
[1748438036085,5.78250943,174.15,174.12,34.8607508]
[1748438036992,0.04290943,174.15,174.13,5.74]
[1748438037992,0.04290943,174.15,174.12,29.1204508]
[1748438038382,0.04290943,174.15,174.13,5.7397]
[1748438038583,0.04290943,174.15,174.12,29.1204508]
[1748438039085,2.0452,174.23,174.13,10.36039023]
[1748438039483,2.0452,174.23,174.13,12.38159023]
[1748438040090,5.7383,174.19,174.16,5.77535491]
[1748438040286,5.7383,174.19,174.16,0.03645491]
[1748438040592,5.7383,174.19,174.16,5.77525491]
[1748438041594,5.7384,174.18,174.16,0.03645491]
[1748438041993,5.7381,174.19,174.16,0.03645491]
[1748438042191,5.7381,174.19,174.16,5.77525491]
[1748438042795,5.7384,174.18,174.16,5.77525491]
[1748438043884,5.7381,174.19,174.16,5.77525491]
[1748438044290,5.7381,174.19,174.17,5.7386]
[1748438045489,0.04407123,174.2,174.19,5.738]
[1748438049993,0.04407123,174.2,174.16,28.95645491]
[1748438050685,5.7387,174.17,174.16,28.95645491]
[1748438051099,5.7387,174.17,174.16,0.03645491]
[1748438055888,5.7387,174.17,174.16,5.491e-05]
[1748438064706,5.7387,174.17,174.07,30.8089]
[1748438064707,10.36039023,174.17,174.07,28.84]
[1748438064909,30.7916,174.16,174.06,2.0672]
[1748438065107,30.7916,174.16,174.05,524.68]
[1748438065108,32.7859,174.16,174.05,524.68]
[1748438065305,32.7859,174.16,174.05,28.84]
[1748438065507,5.7417,174.08,174.05,28.84]
[1748438065713,5.77991361,174.08,174.05,28.88403576]
[1748438065907,5.7421,174.07,174.05,28.88403576]
[1748438066104,0.03821361,174.08,174.05,0.04403576]
[1748438066508,5.7423,174.06,174.05,0.04403576]
[1748438066909,39.23860384,174.08,173.99,28.84]
[1748438067212,5.7441,174.01,173.99,28.84]
[1748438067915,5.78350324,174.02,173.99,28.84]
[1748438068113,0.03980324,174.02,173.99,28.88240441]
[1748438069011,0.03980324,174.02,173.99,34.62700441]
[1748438070514,0.03980324,174.02,174.0,5.7442]
[1748438072510,0.03980324,174.02,173.99,28.88240441]
[1748438073020,5.78350324,174.02,173.99,28.88240441]
[1748438073717,5.744,174.01,173.99,28.88240441]
[1748438075911,0.03980324,174.02,173.99,28.88240441]
[1748438076510,0.03980324,174.02,174.0,5.7443]
[1748438077011,0.03980324,174.02,173.99,28.88240441]
[1748438077316,0.03980324,174.02,173.99,34.62690441]
[1748438077512,0.03980324,174.02,173.99,28.88240441]
[1748438078217,0.03980324,174.02,174.01,5.7439]
[1748438083117,2.0333,174.1,174.05,5.7425]
[1748438083322,39.22039023,174.11,174.05,5.7425]
[1748438083523,5.7419,174.08,174.05,5.7425]
[1748438083823,28.86,174.11,174.03,28.86]
[1748438084117,5.78458637,174.09,174.06,5.742]
[1748438084315,5.78458637,174.09,174.06,0.04020532]
[1748438086015,5.78458637,174.09,174.07,5.7419]
[1748438086413,5.78458637,174.09,174.06,0.04020532]
[1748438086617,5.78458637,174.09,174.07,5.742]
[1748438086820,0.04318637,174.09,174.06,0.04020532]
[1748438087225,0.04318637,174.09,174.08,5.7416]
[1748438088027,0.04318637,174.09,174.06,0.04020532]
[1748438090431,5.742,174.07,174.06,0.04020532]
[1748438101237,5.7418,174.08,174.06,0.04020532]
[1748438101638,0.04318637,174.09,174.06,0.04020532]
[1748438101829,5.7416,174.08,174.06,0.04020532]
[1748438102033,0.04318637,174.09,174.06,0.04020532]
[1748438102929,5.78468637,174.09,174.06,5.78220532]
[1748438103130,5.78468637,174.09,174.06,0.04020532]
[1748438104135,0.04318637,174.09,174.06,0.04020532]
[1748438104530,0.04318637,174.09,174.07,5.7419]
[1748438104737,0.04318637,174.09,174.06,0.04020532]
[1748438105037,0.04318637,174.09,174.07,28.84]
[1748438105339,0.04318637,174.09,174.08,5.7416]
[1748438105538,0.04318637,174.09,174.07,30.781]
[1748438105743,0.04318637,174.09,174.07,36.5228]
[1748438106138,0.04318637,174.09,174.07,30.781]
[1748438106938,5.78448637,174.09,174.07,30.781]
[1748438107337,5.78448637,174.09,174.07,36.5228]
[1748438107544,5.7416,174.08,174.07,30.781]
[1748438107743,5.7416,174.08,174.07,28.84]
[1748438109033,5.7416,174.08,174.06,0.04020532]
[1748438109239,5.78458637,174.09,174.06,0.04020532]
[1748438109646,5.78458637,174.09,174.06,5.78250532]
[1748438111146,0.04318637,174.09,174.06,0.04020532]
[1748438112241,5.7418,174.08,174.06,0.04020532]
[1748438112847,5.742,174.07,174.06,0.04020532]
[1748438116449,0.04318637,174.09,174.06,0.04020532]
[1748438118049,5.7418,174.08,174.06,0.04020532]
[1748438118249,0.04318637,174.09,174.06,0.04020532]
[1748438118747,0.04318637,174.09,174.07,5.7418]
[1748438120049,5.78458637,174.09,174.07,5.7418]
[1748438120545,0.04318637,174.09,174.07,5.7418]
[1748438122042,0.04318637,174.09,174.06,5.78230532]
[1748438122247,0.04318637,174.09,174.06,0.04020532]
[1748438122648,5.7417,174.08,174.06,0.04020532]
[1748438123052,0.04318637,174.09,174.06,0.04020532]
[1748438123252,5.7416,174.08,174.06,0.04020532]
[1748438123459,0.04318637,174.09,174.06,0.04020532]
[1748438126050,5.742,174.07,174.06,0.04020532]
[1748438128357,5.743,174.04,174.01,28.84]
[1748438129250,5.78339057,174.04,174.01,28.88211637]
[1748438130057,5.78339057,174.04,174.02,5.7436]
[1748438131253,5.78339057,174.04,174.01,34.62591637]
[1748438131461,5.7433,174.03,174.01,34.62591637]
[1748438132558,5.78349057,174.04,174.01,34.62591637]
[1748438132958,5.78349057,174.04,174.02,5.7436]
[1748438134065,0.04039057,174.04,174.03,5.7433]
[1748438138065,0.04039057,174.04,174.02,5.7435]
[1748438138665,0.04039057,174.04,174.03,5.7433]
[1748438138863,0.04039057,174.04,174.01,28.88211637]
[1748438138864,5.78339057,174.04,174.01,28.88211637]
[1748438139066,5.78339057,174.04,174.01,34.62581637]
[1748438139262,0.04039057,174.04,174.01,28.88211637]
[1748438139768,0.04039057,174.04,174.02,5.7434]
[1748438141567,5.78349057,174.04,174.01,34.62591637]
[1748438141961,0.04039057,174.04,174.01,28.88211637]
[1748438142564,5.7433,174.03,174.01,28.88211637]